fUST/lending_fUST_20240118
["ID","MTS","AMOUNT","RATE_DAILY","PERIOD"]
[311984395,1705530645573,-500.0,0.00022054,2]
[311984397,1705530645582,-500.0,0.00022054,2]
[311984399,1705530645591,-500.0,0.00022054,2]
[311984401,1705530645601,-646.18,0.00022054,2]
[311984403,1705530645610,-500.0,0.00022054,2]
[311984405,1705530645619,-500.0,0.00022054,2]
[311984407,1705530645627,-500.0,0.00022054,2]
[311984409,1705530645636,-500.0,0.00022054,2]
[311984411,1705530645645,-500.0,0.00022054,2]
[311984413,1705530645655,-500.0,0.00022054,2]
[311984415,1705530645664,-500.0,0.00022054,2]
[311984417,1705530645673,-500.02289485,0.00022054,2]
[311984419,1705530645682,-642.12,0.00022054,2]
[311984421,1705530645691,-500.0,0.00022054,2]
[311984423,1705530645700,-500.0,0.00022054,2]
[311984425,1705530645708,-200.08832143,0.00022054,2]
[311984427,1705530645717,-500.0,0.00022054,2]
[311984429,1705530645726,-500.0,0.00022054,2]
[311984431,1705530645736,-500.0,0.00022054,2]
[311984433,1705530645744,-500.0,0.00022054,2]
[311984435,1705530645753,-851.95,0.00022054,2]
[311984437,1705530645764,-632.72,0.00022054,2]
[311984439,1705530645773,-500.0,0.00022054,2]
[311984441,1705530645782,-500.0,0.00022054,2]
[311984443,1705530645791,-500.0,0.00022054,2]
[311984445,1705530645800,-825.47,0.00022054,2]
[311984447,1705530645809,-500.0,0.00022054,2]
[311984449,1705530645818,-500.0,0.00022054,2]
[311984451,1705530645827,-500.0,0.00022054,2]
[311984453,1705530645836,-500.0,0.00022054,2]
[311984455,1705530645846,-500.0,0.00022054,2]
[311984457,1705530645854,-970.4,0.00022054,2]
[311984459,1705530645863,-500.0,0.00022054,2]
[311984462,1705530645872,-500.0,0.00022054,2]
[311984465,1705530645881,-6131.24,0.00022054,2]
[311984468,1705530645890,-78.33907088,0.00022054,2]
[311984541,1705530646525,-500.0,0.00021917,2]
[311984543,1705530646534,-421.66092912,0.00022054,2]
[311984545,1705530646543,-600.23350788,0.00022054,2]
[311984547,1705530646554,-6027.90811781,0.00022054,2]
[311984550,1705530646565,-1754.26323356,0.00022054,2]
[311984768,1705531354720,1466.67664473,0.0001507,2]
[311984769,1705531390831,1466.67664473,0.0001507,2]
[311984770,1705531410699,1467.5417489,0.0001561,2]
[311984771,1705531428705,716.94433313,0.0001507,2]
[311984774,1705531629916,759.14962713,0.00018084,2]
[311984775,1705531645902,677.06920942,0.00018084,2]
[311984776,1705531689184,1060.992591,0.00018493,2]
[311985212,1705531841545,-902.78853112,0.00018793,2]
[311985214,1705531841555,-587.80263423,0.00018794,2]
[311985216,1705531841564,-372.27965029,0.00018795,2]
[311985218,1705531841573,-154.9690062,0.00018795,3]
[311985220,1705531841582,-5000.0,0.00018795,2]
[311985222,1705531841591,-97.76376355,0.00018798,2]
[311985225,1705531841604,-65.58060308,0.00018798,2]
[311985227,1705531841613,-918.4287939,0.0001891,2]
[311985229,1705531841622,-163.34436663,0.00019439,2]
[311985231,1705531841632,-521.34294529,0.00019724,2]
[311985232,1705531841641,-1492.78572383,0.00019817,2]
[311985234,1705531841650,-163.34436663,0.00020079,2]
[311985236,1705531841659,-9427.81390498,0.00020095,2]
[311985545,1705531844570,-1053.42087284,0.00020095,2]
[311985548,1705531844595,-477.31212756,0.00020095,2]
[311985764,1705531846644,-13941.45309462,0.00020095,2]
[311985766,1705531846654,-326.436048,0.00020095,2]
[311985768,1705531846664,-163.34436663,0.0002072,2]
[311985770,1705531846673,-1258.67,0.00020805,3]
[311985772,1705531846682,-1775.74,0.00020805,3]
[311985774,1705531846691,-1479.78,0.00020805,3]
[311985776,1705531846700,-783.88264082,0.00020805,3]
[311985778,1705531846712,-449.26735918,0.00020805,3]
[311985780,1705531846723,-1027.63,0.00020805,3]
[311985782,1705531846732,-856.35,0.00020805,3]
[311985784,1705531846741,-713.63,0.00020805,3]
[311985786,1705531846750,-50000.0,0.00020815,2]
[311985788,1705531846759,-1776.14633339,0.0002082,2]
[311985789,1705531846768,-1815.68321298,0.00021,2]
[311985791,1705531846778,-327.18048,0.00021,2]
[311985793,1705531846787,-1911.20507046,0.00021478,2]
[311985795,1705531846796,-6526.78620709,0.00021697,2]
[311985798,1705531846812,-200.0,0.00021798,7]
[311985801,1705531846826,-171.55545113,0.00021817,2]
[311985803,1705531846835,-1290.80722829,0.00021914,2]
[311985805,1705531846844,-7949.84974405,0.00021915,2]
[311985807,1705531846854,-7828.21568784,0.00021915,2]
[311985809,1705531846864,-7986.24740238,0.00021915,2]
[311985811,1705531846874,-405.00118709,0.00021915,2]
[311985813,1705531846883,-3124.94029396,0.00021916,2]
[311985815,1705531846893,-681.35131347,0.00021916,2]
[311985817,1705531846902,-298.61906064,0.00021916,2]
[311985819,1705531846912,-4045.95441469,0.00021916,2]
[311985821,1705531846921,-560.70294318,0.00021916,2]
[311985823,1705531846931,-500.0,0.00021917,2]
[311985825,1705531846940,-500.0,0.00021917,2]
[311985827,1705531846949,-500.0,0.00021917,2]
[311985829,1705531846959,-500.0,0.00021917,2]
[311985831,1705531846969,-500.0,0.00021917,2]
[311985833,1705531846979,-501.22037415,0.00021917,2]
[311985835,1705531846988,-500.0,0.00021917,2]
[311985837,1705531846998,-500.0,0.00021917,2]
[311985839,1705531847007,-500.0,0.00021917,2]
[311985841,1705531847016,-500.0,0.00021917,2]
[311985854,1705531847138,-500.0,0.00021917,2]
[311985856,1705531847149,-500.0,0.00021917,2]
[311985858,1705531847158,-500.0,0.00021917,2]
[311985860,1705531847167,-500.0,0.00021917,2]
[311985862,1705531847176,-500.0,0.00021917,2]
[311985864,1705531847185,-500.0,0.00021917,2]
[311985866,1705531847194,-558.72389936,0.00021917,2]
[311985868,1705531847203,-500.0,0.00021917,2]
[311985870,1705531847212,-501.36010961,0.00021917,2]
[311985872,1705531847221,-1000.0,0.00021917,2]
[311985874,1705531847231,-500.0,0.00021917,2]
[311985876,1705531847240,-500.0,0.00021917,2]
[311985878,1705531847250,-500.0,0.00021917,2]
[311985880,1705531847260,-514.91426394,0.00021917,2]
[311985882,1705531847271,-500.0,0.00021917,2]
[311985884,1705531847280,-500.0,0.00021917,2]
[311985886,1705531847289,-500.0,0.00021917,2]
[311985888,1705531847298,-562.44642155,0.00021917,2]
[311985890,1705531847307,-500.0,0.00021917,2]
[311985892,1705531847316,-500.0,0.00021917,2]
[311985894,1705531847326,-500.0,0.00021917,2]
[311985896,1705531847335,-500.0,0.00021917,2]
[311985898,1705531847344,-500.0,0.00021917,2]
[311985900,1705531847354,-434.10255439,0.00021917,2]
[311985902,1705531847363,-500.0,0.00021917,2]
[311985904,1705531847372,-500.0,0.00021917,2]
[311985906,1705531847380,-500.0,0.00021917,2]
[311985908,1705531847389,-500.0,0.00021917,2]
[311985909,1705531847399,-500.0,0.00021917,2]
[311985911,1705531847408,-500.0,0.00021917,2]
[311985913,1705531847417,-500.0,0.00021917,2]
[311985915,1705531847426,-500.0,0.00021917,2]
[311985917,1705531847435,-500.0,0.00021917,2]
[311985919,1705531847444,-500.0,0.00021917,2]
[311985921,1705531847454,-500.0,0.00021917,2]
[311985923,1705531847463,-500.0,0.00021917,2]
[311985925,1705531847472,-500.0,0.00021917,2]
[311985927,1705531847482,-500.0,0.00021917,2]
[311985929,1705531847491,-831.4,0.00021917,2]
[311985931,1705531847500,-500.0,0.00021917,2]
[311985933,1705531847509,-500.0,0.00021917,2]
[311985935,1705531847518,-562.10402669,0.00021917,2]
[311985937,1705531847527,-500.0,0.00021917,2]
[311985939,1705531847536,-500.0,0.00021917,2]
[311985941,1705531847545,-500.0,0.00021917,2]
[311985943,1705531847554,-500.0,0.00021917,2]
[311985945,1705531847563,-500.0,0.00021917,2]
[311985947,1705531847572,-500.0,0.00021917,2]
[311985949,1705531847581,-500.0,0.00021917,2]
[311985951,1705531847590,-500.0,0.00021917,2]
[311985953,1705531847599,-500.0,0.00021917,2]
[311985955,1705531847608,-500.0,0.00021917,2]
[311985957,1705531847617,-536.36,0.00021917,2]
[311985959,1705531847626,-500.0,0.00021917,2]
[311985961,1705531847635,-523.7082104,0.00021917,2]
[311985962,1705531847643,-500.0,0.00021917,2]
[311985964,1705531847653,-510.74859698,0.00021917,2]
[311985966,1705531847662,-500.0,0.00021917,2]
[311985968,1705531847671,-500.0,0.00021917,2]
[311985970,1705531847680,-500.0,0.00021917,2]
[311985971,1705531847689,-500.0,0.00021917,2]
[311985973,1705531847698,-500.0,0.00021917,2]
[311985975,1705531847707,-498.6,0.00021917,2]
[311985977,1705531847716,-500.0,0.00021917,2]
[311985979,1705531847729,-500.0,0.00021917,2]
[311985981,1705531847737,-500.0,0.00021917,2]
[311985982,1705531847747,-500.0,0.00021917,2]
[311985984,1705531847757,-500.0,0.00021917,2]
[311985986,1705531847766,-631.19376918,0.00021917,2]
[311985988,1705531847777,-1236.19,0.00021917,2]
[311985990,1705531847786,-500.0,0.00021917,2]
[311985992,1705531847796,-500.0,0.00021917,2]
[311985994,1705531847806,-198.17774365,0.00021917,2]
[311985996,1705531847815,-500.0,0.00021917,2]
[311985998,1705531847825,-500.0,0.00021917,2]
[311986000,1705531847835,-500.0,0.00021917,2]
[311986002,1705531847844,-500.0,0.00021917,2]
[311986003,1705531847853,-1654.2,0.00021917,2]
[311986006,1705531847868,-500.0,0.00021917,2]
[311986008,1705531847883,-378.41059632,0.00021917,2]
[311986011,1705531847896,-500.0,0.00021917,2]
[311986013,1705531847907,-500.0,0.00021917,2]
[311986015,1705531847918,-500.0,0.00021917,2]
[311986017,1705531847931,-500.0,0.00021917,2]
[311986020,1705531847945,-502.76389205,0.00021917,2]
[311986022,1705531847957,-503.73641132,0.00021917,2]
[311986024,1705531847972,-500.0,0.00021917,2]
[311986027,1705531847985,-500.0,0.00021917,2]
[311986029,1705531847996,-500.0,0.00021917,2]
[311986031,1705531848008,-500.0,0.00021917,2]
[311986033,1705531848020,-500.0,0.00021917,2]
[311986035,1705531848033,-500.0,0.00021917,2]
[311986038,1705531848045,-500.0,0.00021917,2]
[311986040,1705531848057,-500.0,0.00021917,2]
[311986042,1705531848070,-542.08068923,0.00021917,2]
[311986044,1705531848082,-500.0,0.00021917,2]
[311986046,1705531848092,-500.0,0.00021917,2]
[311986049,1705531848106,-500.0,0.00021917,2]
[311986051,1705531848118,-500.0,0.00021917,2]
[311986054,1705531848131,-500.0,0.00021917,2]
[311986056,1705531848143,-500.0,0.00021917,2]
[311986058,1705531848155,-354.6508384,0.00021917,2]
[311986060,1705531848167,-500.0,0.00021917,2]
[311986062,1705531848179,-500.0,0.00021917,2]
[311986065,1705531848192,-500.0,0.00021917,2]
[311986067,1705531848204,-500.0,0.00021917,2]
[311986069,1705531848218,-500.0,0.00021917,2]
[311986071,1705531848231,-500.0,0.00021917,2]
[311986074,1705531848242,-613.83179495,0.00021917,2]
[311986076,1705531848252,-500.0,0.00021917,2]
[311986078,1705531848262,-639.06,0.00021917,2]
[311986080,1705531848274,-500.0,0.00021917,2]
[311986082,1705531848287,-166.98600418,0.00021917,2]
[311986084,1705531848298,-500.0,0.00021917,2]
[311986086,1705531848310,-500.0,0.00021917,2]
[311986088,1705531848321,-500.0,0.00021917,2]
[311986090,1705531848332,-500.0,0.00021917,2]
[311986092,1705531848342,-500.0,0.00021917,2]
[311986094,1705531848353,-500.0,0.00021917,2]
[311986097,1705531848364,-500.0,0.00021917,2]
[311986099,1705531848375,-508.66142748,0.00021917,2]
[311986101,1705531848386,-500.0,0.00021917,2]
[311986103,1705531848397,-500.0,0.00021917,2]
[311986105,1705531848408,-600.88725899,0.00021917,2]
[311986107,1705531848419,-419.50023591,0.00021917,2]
[311986109,1705531848430,-500.0,0.00021917,2]
[311986112,1705531848441,-500.0,0.00021917,2]
[311986114,1705531848453,-500.0,0.00021917,2]
[311986116,1705531848463,-756.68,0.00021917,2]
[311986118,1705531848475,-500.0,0.00021917,2]
[311986120,1705531848485,-500.0,0.00021917,2]
[311986122,1705531848496,-2542.95,0.00021917,2]
[311986124,1705531848507,-634.67,0.00021917,2]
[311986126,1705531848518,-579.99,0.00021917,2]
[311986128,1705531848531,-500.0,0.00021917,2]
[311986131,1705531848542,-9326.41,0.00021917,2]
[311986133,1705531848553,-500.0,0.00021917,2]
[311986135,1705531848564,-500.0,0.00021917,2]
[311986137,1705531848575,-500.0,0.00021917,2]
[311986139,1705531848587,-531.32900075,0.00021917,2]
[311986141,1705531848598,-926.65,0.00021917,2]
[311986143,1705531848610,-155.03516206,0.00021917,2]
[311986145,1705531848620,-500.0,0.00021917,2]
[311986147,1705531848632,-500.0,0.00021917,2]
[311986149,1705531848642,-500.0,0.00021917,2]
[311986151,1705531848653,-500.0,0.00021917,2]
[311986153,1705531848665,-301.96168377,0.00021917,2]
[311986156,1705531848676,-500.0,0.00021917,2]
[311986158,1705531848689,-500.0,0.00021917,2]
[311986160,1705531848700,-5719.9,0.00021917,2]
[311986162,1705531848711,-500.0,0.00021917,2]
[311986164,1705531848726,-500.0,0.00021917,2]
[311986166,1705531848737,-500.0,0.00021917,2]
[311986168,1705531848748,-500.0,0.00021917,2]
[311986170,1705531848759,-500.0,0.00021917,2]
[311986182,1705531848877,-500.0,0.00021917,2]
[311986184,1705531848892,-500.0,0.00021917,2]
[311986186,1705531848901,-500.0,0.00021917,2]
[311986188,1705531848911,-500.0,0.00021917,2]
[311986190,1705531848920,-648.43,0.00021917,2]
[311986192,1705531848929,-567.53245739,0.00021917,2]
[311986194,1705531848938,-3197.58,0.00021917,2]
[311986196,1705531848947,-500.0,0.00021917,2]
[311986198,1705531848956,-500.0,0.00021917,2]
[311986200,1705531848965,-200.0,0.00021917,2]
[311986201,1705531848974,-500.0,0.00021917,2]
[311986203,1705531848983,-3470.37,0.00021917,2]
[311986205,1705531848992,-500.0,0.00021917,2]
[311986207,1705531849001,-500.0,0.00021917,2]
[311986209,1705531849009,-500.0,0.00021917,2]
[311986211,1705531849018,-7398.69,0.00021917,2]
[311986213,1705531849028,-674.38,0.00021917,2]
[311986214,1705531849038,-500.0,0.00021917,2]
[311986216,1705531849047,-500.0,0.00021917,2]
[311986218,1705531849056,-500.0,0.00021917,2]
[311986220,1705531849065,-3600.1,0.00021917,2]
[311986222,1705531849074,-500.0,0.00021917,2]
[311986224,1705531849083,-392.27,0.00021917,2]
[311986226,1705531849092,-501.16418846,0.00021917,2]
[311986228,1705531849101,-500.0,0.00021917,2]
[311986230,1705531849110,-500.0,0.00021917,2]
[311986232,1705531849119,-500.0,0.00021917,2]
[311986234,1705531849128,-500.0,0.00021917,2]
[311986235,1705531849138,-500.0,0.00021917,2]
[311986237,1705531849147,-500.0,0.00021917,2]
[311986239,1705531849156,-522.0123093,0.00021917,2]
[311986241,1705531849165,-500.0,0.00021917,2]
[311986243,1705531849174,-500.0,0.00021917,2]
[311986245,1705531849183,-500.0,0.00021917,2]
[311986247,1705531849192,-500.0,0.00021917,2]
[311986248,1705531849202,-500.0,0.00021917,2]
[311986250,1705531849211,-755.55,0.00021917,2]
[311986252,1705531849221,-500.0,0.00021917,2]
[311986254,1705531849231,-500.0,0.00021917,2]
[311986256,1705531849240,-500.0,0.00021917,2]
[311986258,1705531849250,-500.0,0.00021917,2]
[311986260,1705531849259,-500.0,0.00021917,2]
[311986262,1705531849268,-677.62,0.00021917,2]
[311986264,1705531849277,-1000.38,0.00021917,2]
[311986265,1705531849286,-500.0,0.00021917,2]
[311986267,1705531849296,-1444.51,0.00021917,2]
[311986269,1705531849304,-500.0,0.00021917,2]
[311986271,1705531849314,-219.91537736,0.00021917,2]
[311986273,1705531849323,-500.0,0.00021917,2]
[311986275,1705531849333,-918.75,0.00021917,2]
[311986277,1705531849342,-500.0,0.00021917,2]
[311986279,1705531849351,-387.7080178,0.00021917,2]
[311986281,1705531849359,-500.0,0.00021917,2]
[311986283,1705531849368,-500.0,0.00021917,2]
[311986284,1705531849377,-500.0,0.00021917,2]
[311986286,1705531849386,-500.0,0.00021917,2]
[311986288,1705531849395,-500.0,0.00021917,2]
[311986290,1705531849405,-500.0,0.00021917,2]
[311986292,1705531849414,-500.0,0.00021917,2]
[311986294,1705531849423,-500.0,0.00021917,2]
[311986296,1705531849432,-500.0,0.00021917,2]
[311986298,1705531849441,-500.0,0.00021917,2]
[311986300,1705531849449,-500.0,0.00021917,2]
[311986302,1705531849458,-1152.77,0.00021917,2]
[311986303,1705531849468,-500.0,0.00021917,2]
[311986305,1705531849477,-501.93703226,0.00021917,2]
[311986307,1705531849486,-500.0,0.00021917,2]
[311986309,1705531849494,-500.0,0.00021917,2]
[311986311,1705531849505,-500.0,0.00021917,2]
[311986313,1705531849514,-500.0,0.00021917,2]
[311986315,1705531849523,-166.666666,0.00021918,2]
[311986317,1705531849533,-401.1482041,0.00021918,2]
[311986319,1705531849542,-3502.87633157,0.00022,2]
[311986321,1705531849551,-425.53656097,0.00022,2]
[311986323,1705531849560,-214.61666136,0.00022052,2]
[311986324,1705531849569,-328.46864473,0.00022052,2]
[311986326,1705531849578,-2082.34429626,0.00022054,2]
[311986328,1705531849587,-207.80299669,0.00022054,2]
[311986330,1705531849595,-200.0,0.00022054,2]
[311986332,1705531849606,-3501.50408628,0.00022054,2]
[311986334,1705531849615,-500.0,0.00022054,2]
[311986336,1705531849624,-500.0,0.00022054,2]
[311986338,1705531849634,-500.0,0.00022054,2]
[311986340,1705531849642,-500.0,0.00022054,2]
[311986342,1705531849651,-513.75406854,0.00022054,2]
[311986344,1705531849660,-500.0,0.00022054,2]
[311986346,1705531849671,-500.0,0.00022054,2]
[311986348,1705531849681,-500.0,0.00022054,2]
[311986350,1705531849690,-1000.0,0.00022054,2]
[311986352,1705531849700,-500.0,0.00022054,2]
[311986354,1705531849709,-500.0,0.00022054,2]
[311986355,1705531849718,-500.0,0.00022054,2]
[311986357,1705531849731,-500.0,0.00022054,2]
[311986359,1705531849740,-500.0,0.00022054,2]
[311986361,1705531849750,-500.0,0.00022054,2]
[311986363,1705531849760,-500.0,0.00022054,2]
[311986365,1705531849770,-500.0,0.00022054,2]
[311986367,1705531849781,-500.0,0.00022054,2]
[311986369,1705531849791,-831.4,0.00022054,2]
[311986371,1705531849801,-500.0,0.00022054,2]
[311986372,1705531849810,-500.0,0.00022054,2]
[311986374,1705531849819,-500.06605491,0.00022054,2]
[311986375,1705531849828,-500.0,0.00022054,2]
[311986376,1705531849837,-536.36,0.00022054,2]
[311986377,1705531849846,-500.0,0.00022054,2]
[311986378,1705531849855,-500.0,0.00022054,2]
[311986379,1705531849864,-500.0,0.00022054,2]
[311986380,1705531849872,-390.2743116,0.00022054,2]
[311986381,1705531849881,-500.0,0.00022054,2]
[311986382,1705531849890,-470.35600331,0.00022054,2]
[311986383,1705531849907,-765.83399669,0.00022054,2]
[311986384,1705531849916,-500.0,0.00022054,2]
[311986385,1705531849925,-500.0,0.00022054,2]
[311986386,1705531849934,-389.5384528,0.00022054,2]
[311986387,1705531849944,-111.18664687,0.00022054,2]
[311986388,1705531849953,-1654.2,0.00022054,2]
[311986389,1705531849963,-500.0,0.00022054,2]
[311986390,1705531849971,-500.0,0.00022054,2]
[311986391,1705531849980,-500.0,0.00022054,2]
[311986392,1705531849989,-7.92289513,0.00022054,2]
[311988072,1705532317917,24900.0,0.00018384,2]
[311988074,1705532356012,620.16906878,0.00018384,2]
[311988075,1705532357324,3835.99564847,0.00018384,2]
[311988076,1705532358477,342.81948955,0.00018384,2]
[311988077,1705532359067,3215.63352838,0.00018384,2]
[311988078,1705532363575,534.69199117,0.00018384,2]
[311988079,1705532371588,1108.86696375,0.00018384,2]
[311988080,1705532372011,468.88105893,0.00018384,2]
[311988081,1705532373297,676.51801622,0.00018384,2]
[311988082,1705532374595,342.88387142,0.00018384,2]
[311988083,1705532380989,3215.63352838,0.00018384,2]
[311988084,1705532381547,534.69199117,0.00018384,2]
[311988086,1705532389598,414.65803528,0.00018384,2]
[311988087,1705532403007,3215.63352838,0.00018384,2]
[311988088,1705532403557,168.9295062,0.00018384,2]
[311988089,1705532416618,547.46838753,0.00018384,2]
[311988090,1705532423008,3215.63352838,0.00018384,2]
[311988091,1705532434631,547.46838753,0.00018384,2]
[311988092,1705532441022,3215.63352838,0.00018384,2]
[311988093,1705532450514,250.0,0.00018347,2]
[311988094,1705532450628,575.81519465,0.00018384,2]
[311988096,1705532457015,3215.63352838,0.00018384,2]
[311988098,1705532479020,1333.81091373,0.00018384,2]
[311988099,1705532560540,356.010828,0.00018359,2]
[311988101,1705532667508,698.4552291,0.00018339,2]
[311988103,1705532717321,2037.63352191,0.00018339,2]
[311988104,1705532723345,155.29690136,0.00018339,2]
[311988105,1705532746481,24900.0,0.00018406,2]
[311988106,1705532750531,342.40737445,0.00018339,2]
[311988109,1705532958079,5472.7327556,0.00018369,2]
[311988117,1705533020072,274.401816,0.0001836,2]
[311988236,1705533039591,-3742.63964853,0.00019172,2]
[311988238,1705533039600,-452.30060806,0.00019172,2]
[311988240,1705533039609,-679.50831807,0.00019173,2]
[311988241,1705533039618,-154.98450155,0.00019174,3]
[311988243,1705533039628,-400.53090856,0.00019174,2]
[311988245,1705533039637,-587.80263423,0.00019174,2]
[311988247,1705533039646,-156.81264042,0.00019175,2]
[311988249,1705533039655,-1241.4576912,0.00019175,2]
[311988251,1705533039664,-161.4313671,0.00019178,2]
[311988253,1705533039674,-594.69,0.00019474,3]
[311988256,1705533039683,-495.58,0.00019474,3]
[311988259,1705533039692,-177.21329716,0.00019481,2]
[311988262,1705533039701,-299.87681237,0.00019481,2]
[311988264,1705533039710,-164.86241219,0.00019482,2]
[311988266,1705533039718,-470.24915818,0.00019483,2]
[311988269,1705533039728,-81144.18594681,0.00019483,2]
[311988272,1705533039736,-8092.6766384,0.00019484,2]
[311988275,1705533039745,-976.44607626,0.00019724,2]
[311988277,1705533039755,-995.19048255,0.00019817,2]
[311988278,1705533039764,-309.87604958,0.0002,2]
[311988280,1705533039774,-1815.68321298,0.00021,2]
[311988282,1705533039783,-327.18048,0.00021,2]
[311988284,1705533039792,-1050.14223568,0.00021114,2]
[311988286,1705533039801,-154.98450155,0.00021114,2]
[311988288,1705533039809,-521.45877329,0.00021114,2]
[311988290,1705533039818,-254.85877749,0.00021114,2]
[311988291,1705533039827,-215.98708657,0.00021114,2]
[311988293,1705533039836,-261.37535922,0.00021115,2]
[311988294,1705533039845,-3264.14611372,0.0002139,5]
[311988296,1705533039853,-200.0,0.00021431,7]
[311988298,1705533039862,-844.35662096,0.00021503,2]
[311988300,1705533039871,-181.82299985,0.00021817,2]
[311988302,1705533039880,-852.52763487,0.00021905,2]
[311988303,1705533039889,-500.0,0.00021917,2]
[311988305,1705533039898,-500.0,0.00021917,2]
[311988307,1705533039908,-220.0,0.00021917,2]
[311988309,1705533039917,-500.0,0.00021917,2]
[311988311,1705533039926,-211.43012232,0.00021917,2]
[311988313,1705533039936,-500.0,0.00021917,2]
[311988316,1705533039945,-500.0,0.00021917,2]
[311988319,1705533039954,-526.36826856,0.00021917,2]
[311988322,1705533039963,-500.0,0.00021917,2]
[311988325,1705533039971,-500.0,0.00021917,2]
[311988327,1705533039980,-500.0,0.00021917,2]
[311988330,1705533039990,-885.92,0.00021917,2]
[311988333,1705533039999,-1000.0,0.00021917,2]
[311988336,1705533040009,-500.0,0.00021917,2]
[311988339,1705533040018,-437.89597331,0.00021917,2]
[311988353,1705533040114,-500.0,0.00021917,2]
[311988355,1705533040123,-500.0,0.00021917,2]
[311988357,1705533040133,-500.0,0.00021917,2]
[311988358,1705533040142,-337.83766465,0.00021917,2]
[311988360,1705533040150,-500.0,0.00021917,2]
[311988362,1705533040159,-502.42486477,0.00021917,2]
[311988364,1705533040168,-500.0,0.00021917,2]
[311988366,1705533040177,-500.0,0.00021917,2]
[311988368,1705533040187,-500.0,0.00021917,2]
[311988370,1705533040195,-500.0,0.00021917,2]
[311988372,1705533040204,-500.0,0.00021917,2]
[311988374,1705533040213,-504.47038678,0.00021917,2]
[311988376,1705533040222,-555.37210289,0.00021917,2]
[311988378,1705533040231,-500.0,0.00021917,2]
[311988380,1705533040240,-503.26576196,0.00021917,2]
[311988382,1705533040248,-500.0,0.00021917,2]
[311988383,1705533040257,-500.0,0.00021917,2]
[311988385,1705533040267,-500.0,0.00021917,2]
[311988387,1705533040275,-500.0,0.00021917,2]
[311988389,1705533040284,-518.65973861,0.00021917,2]
[311988391,1705533040293,-500.0,0.00021917,2]
[311988393,1705533040302,-500.0,0.00021917,2]
[311988395,1705533040311,-500.0,0.00021917,2]
[311988397,1705533040320,-500.0,0.00021917,2]
[311988399,1705533040329,-500.0,0.00021917,2]
[311988401,1705533040339,-500.0,0.00021917,2]
[311988403,1705533040348,-500.0,0.00021917,2]
[311988405,1705533040357,-500.0,0.00021917,2]
[311988407,1705533040366,-500.0,0.00021917,2]
[311988409,1705533040375,-500.0,0.00021917,2]
[311988411,1705533040384,-500.0,0.00021917,2]
[311988413,1705533040393,-500.0,0.00021917,2]
[311988416,1705533040403,-500.0,0.00021917,2]
[311988418,1705533040412,-500.0,0.00021917,2]
[311988420,1705533040421,-500.0,0.00021917,2]
[311988422,1705533040430,-500.0,0.00021917,2]
[311988424,1705533040439,-500.0,0.00021917,2]
[311988426,1705533040448,-366.65755106,0.00021917,2]
[311988427,1705533040457,-500.0,0.00021917,2]
[311988429,1705533040465,-502.08749637,0.00021917,2]
[311988431,1705533040474,-500.0,0.00021917,2]
[311988433,1705533040483,-530.50360264,0.00021917,2]
[311988435,1705533040492,-500.0,0.00021917,2]
[311988437,1705533040502,-506.78614687,0.00021917,2]